bitfinex/quotes_SOLUSD_20250204
["timestamp","ask_amount","ask_price","bid_price","bid_amount"]
[1738702886853,1.0,204.98,204.88,0.73161357]
[1738702887166,1.0,204.92,204.82,0.73178561]
[1738702887373,1.0,204.96,204.88,36.52069267]
[1738702887374,1.0,204.94,204.88,36.52069267]
[1738702887549,1.0,204.93,204.88,36.52069267]
[1738702887743,1.0936082,204.99,204.92,36.52069267]
[1738702888053,1.0936082,204.99,204.91,36.52069267]
[1738702888372,1.0,204.98,204.91,36.52069267]
[1738702888579,2.0,204.94,204.89,36.52069267]
[1738702888741,1.0,204.96,204.91,36.52069267]
[1738702888946,2.0,204.96,204.91,36.52069267]
[1738702889146,2.0,204.98,204.91,36.52069267]
[1738702889343,1.0,204.9,204.87,36.52069267]
[1738702889554,1.0,204.92,204.89,36.52069267]
[1738702889952,0.0936082,204.99,204.91,36.52069267]
[1738702890154,0.0936082,204.99,204.97,36.52069267]
[1738702890952,0.0936082,204.99,204.95,36.52069267]
[1738702891472,0.0936082,204.99,204.97,348.52069267]
[1738702891949,1.0,204.95,204.92,36.52069267]
[1738702892143,1.0,204.98,204.9,36.52069267]
[1738702892352,1.0,204.98,204.94,36.52069267]
[1738702892654,2.0,204.98,204.94,36.52069267]
[1738702892870,0.0936082,204.99,204.96,36.52069267]
[1738702893092,1.0936082,204.99,204.94,36.52069267]
[1738702893251,0.0936082,204.99,204.98,36.52069267]
[1738702893973,0.07965214,205.0,204.98,36.52069267]
[1738702894171,0.10406268,205.08,204.99,50.6641162]
[1738702894345,1.09768661,205.07,205.06,36.52069267]
[1738702894549,1.0,205.06,205.04,36.52069267]
[1738702894745,1.0,205.04,205.0,36.52069267]
[1738702894944,1.0,204.99,204.91,0.73145366]
[1738702895150,1.0,204.99,204.93,36.52069267]
[1738702895151,1.0,204.95,204.93,36.52069267]
[1738702895454,1.0,204.88,204.85,36.52069267]
[1738702895659,1.0,204.91,204.87,36.52069267]
[1738702895854,1.0,204.92,204.87,36.52069267]
[1738702896052,1.0,204.94,204.91,36.52069267]
[1738702896651,1.0,204.92,204.87,36.52069267]
[1738702896851,1.0,204.91,204.89,36.52069267]
[1738702897349,1.0,204.83,204.81,36.52069267]
[1738702897675,1.0,204.8,204.79,36.52069267]
[1738702897862,1.0,204.82,204.79,36.52069267]
[1738702898060,1.0,204.8,204.79,36.52069267]
[1738702898262,1.0,204.82,204.79,36.52069267]
[1738702898461,1.0,204.85,204.81,36.52069267]
[1738702898766,1.0,204.89,204.83,36.52069267]
[1738702899070,1.0,204.82,204.81,36.52069267]
[1738702899248,1.0,204.78,204.71,0.73235897]
[1738702899453,1.0,204.76,204.63,0.73247257]
[1738702899674,1.0,204.72,204.63,0.73247257]
[1738702899868,1.0,204.76,204.63,0.73247257]
[1738702899869,1.0,204.74,204.7,0.03]
[1738702900069,1.0,204.76,204.7,0.03]
[1738702900267,1.0,204.74,204.7,0.03]
[1738702900472,1.0,204.72,204.7,36.55069267]
[1738702900671,1.0,204.75,204.7,73.04138534]
[1738702900886,1.0,204.77,204.74,36.52069267]
[1738702901075,1.0,204.79,204.76,36.52069267]
[1738702901273,2.0,204.8,204.78,36.52069267]
[1738702901576,1.0,204.8,204.78,36.52069267]
[1738702901761,1.0,204.8,204.76,36.52069267]
[1738702902254,1.0,204.8,204.78,36.52069267]
[1738702902455,1.0,204.79,204.78,36.52069267]
[1738702902656,1.0,204.82,204.78,36.52069267]
[1738702903062,1.0,204.8,204.76,36.52069267]
[1738702903255,2.0,204.73,204.72,36.52069267]
[1738702903486,1.0,204.75,204.7,36.52069267]
[1738702903672,1.0,204.72,204.7,36.52069267]
[1738702903868,1.0,204.71,204.7,36.52069267]
[1738702904175,1.0,204.69,204.68,36.52069267]
[1738702904381,1.0,204.69,204.66,36.52069267]
[1738702904877,2.0,204.73,204.68,36.52069267]
[1738702905296,1.0,204.72,204.7,36.52069267]
[1738702905494,1.0,204.66,204.63,37.25311641]
[1738702905660,1.0,204.64,204.61,36.52069267]
[1738702905852,1.0,204.62,204.61,36.52069267]
[1738702906058,1.0,204.64,204.57,1.20023506]
[1738702906265,1.0,204.62,204.59,36.02069267]
[1738702906670,1.0,204.58,204.57,14.14471726]
[1738702906875,1.0,204.58,204.57,0.73286873]
[1738702907177,1.0,204.58,204.56,0.167]
[1738702907379,2.0,204.58,204.56,0.167]
[1738702907764,22.0,204.58,204.56,0.167]
[1738702907964,0.12549,204.57,204.56,0.167]
[1738702908186,2.0,204.54,204.53,47.84890246]
[1738702908572,39.88611724,204.54,204.53,47.84890246]
[1738702908767,39.88611724,204.54,204.38,312.0]
[1738702908768,1.0,204.37,204.36,3.9137197]
[1738702909082,1.0,204.18,204.06,10.0]
[1738702909288,1.0,204.25,204.14,1.22561286]
[1738702909479,1.0,204.29,204.13,11.14007283]
[1738702909785,1.0,204.27,204.13,12.38486643]
[1738702909985,1.0,204.27,204.26,36.88611724]
[1738702910187,1.0,204.31,204.24,36.88611724]
[1738702910397,1.0,204.34,204.28,36.88611724]
[1738702910611,1.0,204.34,204.32,36.88611724]
[1738702910798,1.0,204.33,204.28,36.88611724]
[1738702911091,1.0,204.37,204.32,36.88611724]
[1738702911304,1.0,204.37,204.34,36.88611724]
[1738702911604,2.0,204.42,204.37,13.41184853]
[1738702911808,1.0,204.42,204.37,36.88611724]
[1738702911971,2.0,204.44,204.37,36.88611724]
[1738702912169,1.0,204.4,204.35,36.88611724]
[1738702912414,1.0,204.42,204.37,36.88611724]
[1738702912577,1.0,204.36,204.33,36.88611724]
[1738702912777,1.0,204.38,204.31,36.88611724]
[1738702913077,1.0,204.42,204.37,36.88611724]
[1738702913288,1.0,204.46,204.4,4.8923]
[1738702913289,1.0,204.44,204.4,4.8923]
[1738702913586,2.0,204.46,204.41,36.88611724]
[1738702913785,2.0,204.46,204.35,37.87924853]
[1738702913786,1.0,204.42,204.39,36.88611724]
[1738702913988,1.0,204.45,204.41,36.88611724]
[1738702914298,1.0,204.46,204.37,36.88611724]
[1738702914299,1.0,204.4,204.37,36.88611724]
[1738702914481,1.0,204.4,204.35,36.88611724]
[1738702914676,1.0,204.44,204.39,36.88611724]
[1738702914880,1.0,204.39,204.35,36.88611724]
[1738702915079,1.0,204.35,204.29,1.21392225]
[1738702915294,1.0,204.33,204.29,38.10003949]
[1738702915481,0.91752455,204.42,204.29,38.10003949]
[1738702915482,1.0,204.3,204.29,1.21392225]
[1738702915679,1.0,204.3,204.09,13.1522]
[1738702915680,1.0,204.25,204.23,36.88611724]
[1738702915890,1.0,204.23,204.2,36.88611724]
[1738702916082,1.0,204.16,204.14,1.19986231]
[1738702916312,1.0,204.27,204.14,6.46919327]
[1738702916511,1.0,204.29,204.16,10.9052]
[1738702916711,1.0,204.34,204.17,13.78180489]
[1738702916879,1.0,204.34,204.25,13.66282853]
[1738702917079,1.0,204.34,204.26,0.36966571]
[1738702917381,1.0,204.36,204.33,36.88611724]
[1738702917576,1.0,204.38,204.33,36.88611724]
[1738702918078,1.0,204.41,204.35,36.88611724]
[1738702918399,1.0,204.45,204.39,36.88611724]
[1738702918598,1.0,204.4,204.36,36.88611724]
[1738702918802,1.0,204.4,204.34,36.88611724]
[1738702918985,1.0,204.42,204.39,0.03]
[1738702919299,1.0,204.4,204.39,0.03]
[1738702919797,36.88611724,204.45,204.37,4.893]
[1738702919986,36.88611724,204.49,204.4,36.88611724]
[1738702920185,36.88611724,204.47,204.37,54.01181724]
[1738702920396,36.88611724,204.43,204.37,4.893]
[1738702920626,0.25098,204.43,204.28,4.8952]
[1738702920810,36.88611724,204.33,204.28,4.8952]
[1738702920991,36.88611724,204.35,204.28,4.8952]
[1738702921191,36.88611724,204.37,204.28,17.1333]
[1738702921395,36.88611724,204.41,204.31,36.88611724]
[1738702921584,36.88611724,204.39,204.31,312.0]
[1738702921785,36.88611724,204.34,204.3,4.8947]
[1738702922105,36.88611724,204.34,204.26,17.135]
[1738702922279,38.88611724,204.5,204.31,36.88611724]
[1738702922620,36.88611724,204.41,204.31,36.88611724]
[1738702922778,0.37647,204.33,204.26,4.8957]
[1738702922978,36.88611724,204.27,204.26,4.8957]
[1738702923313,36.88611724,204.27,204.16,17.1433]
[1738702923716,0.37647,204.31,204.16,17.1433]
[1738702923885,1.0,204.25,204.13,0.0001]
[1738702924096,74.77223448,204.15,204.07,0.05109827]
[1738702924316,73.77223448,204.11,204.06,10.0]
[1738702924612,36.88611724,204.07,204.06,10.0]
[1738702924982,36.88611724,204.07,203.93,0.37254629]
[1738702925178,36.88611724,203.93,203.84,1.0]
[1738702925380,36.70420315,203.87,203.84,2.25335409]
[1738702925598,36.88611724,203.89,203.79,36.88611724]
[1738702925779,36.88611724,203.87,203.74,1.24764674]
[1738702925975,36.88611724,203.87,203.75,36.88611724]
[1738702926419,0.08861593,203.86,203.74,24.5905]
[1738702926590,20.0,203.84,203.75,4.9079]
[1738702926787,36.88611724,203.77,203.74,0.05]
[1738702926991,0.08861593,203.86,203.75,4.9079]
[1738702927187,0.08861593,203.86,203.75,17.1778]
[1738702927397,0.08861593,203.86,203.74,1.05]
[1738702927398,1.0,203.83,203.74,0.05]
[1738702927712,0.9203383,203.85,203.74,0.05]
[1738702928202,0.08861593,203.86,203.74,0.05]
[1738702928203,36.88611724,203.83,203.74,0.05]
[1738702928403,36.88611724,203.81,203.74,13.46184853]
[1738702928602,36.88611724,203.79,203.74,0.05]
[1738702928815,1.9202069,203.84,203.74,0.05]
[1738702929191,1.00881369,203.86,203.74,0.05]
[1738702929498,0.08861593,203.86,203.8,1.0]
[1738702929700,30.0,203.93,203.9,1.0]
[1738702929899,0.3,204.05,203.75,3.7339]
[1738702929900,0.91777372,203.92,203.86,37.88611724]
[1738702930206,0.91777372,203.97,203.91,1.0]
[1738702930407,36.88611724,204.12,203.97,1.0]
[1738702930619,23.14189324,204.23,204.09,1.0]
[1738702930825,30.0,204.2,204.07,1.0]
[1738702931119,30.0,204.2,203.99,0.4984]
[1738702931333,0.5016,204.2,204.16,312.0]
[1738702931492,0.5016,204.2,204.04,0.4984]
[1738702931493,0.5016,204.34,204.08,0.4984]
[1738702931688,0.5016,204.34,204.11,0.4984]
[1738702932023,0.72851094,204.15,204.11,36.88611724]
[1738702932187,37.61462818,204.15,204.06,13.41184853]
[1738702932389,0.72851094,204.17,204.09,13.41184853]
[1738702932625,30.0,204.35,204.09,13.41184853]
[1738702932626,1.0,204.36,204.13,13.41184853]
[1738702932920,0.37647,204.19,204.04,18.36398783]
[1738702933129,0.12549,204.19,204.11,1.0]
[1738702933291,13.411849,204.36,204.24,0.38834176]
[1738702933483,13.411849,204.36,204.25,4.8959]
[1738702933813,13.411849,204.36,204.35,36.88611724]
[1738702934003,36.88611724,204.53,204.35,36.88611724]
[1738702934188,1.0,204.43,204.28,0.38834176]
[1738702934507,0.61165824,204.47,204.31,20.0]
[1738702934710,0.61165824,204.43,204.27,20.0]
[1738702935010,0.063,204.5,204.36,0.38834176]
[1738702935304,0.063,204.58,204.51,1.0]
[1738702935603,30.0,204.68,204.6,20.0]
[1738702935810,0.063,204.79,204.7,20.0]
[1738702936027,0.063,204.79,204.7,73.77223448]
[1738702936225,19.495623,204.8,204.77,36.88611724]
[1738702936424,20.1567809,204.84,204.74,1.0]
[1738702936591,20.1567809,204.84,204.83,36.88611724]
[1738702936592,1.014e-05,204.84,204.83,36.88611724]
[1738702936918,1.014e-05,204.84,204.81,37.88611724]
[1738702937089,1.0,204.83,204.82,1.0]
[1738702937406,1.014e-05,204.84,204.8,1.0]
[1738702937596,1.014e-05,204.84,204.76,4.8837]
[1738702937798,1.0,204.92,204.74,4.8841]
[1738702938009,1.0,204.87,204.63,1.0]
[1738702938221,0.063,204.71,204.64,0.73245012]
[1738702938386,36.88611724,204.87,204.7,73.77223448]
[1738702938581,37.88611724,204.85,204.73,36.88611724]
[1738702938789,36.88611724,204.8,204.68,36.88611724]
[1738702938988,0.7325363,204.88,204.63,12.94952687]
[1738702939505,0.7325363,204.88,204.68,1.0]
[1738702939710,0.7955363,204.98,204.75,0.25098]
[1738702939925,0.063,204.98,204.77,13.91380853]
[1738702940088,0.063,204.98,204.87,0.50196]
[1738702940431,36.88611724,205.09,204.98,0.25098]
[1738702940603,36.88611724,205.11,205.01,36.88611724]
[1738702940804,36.88611724,205.11,204.93,1.0]
[1738702941049,36.88611724,205.13,205.04,20.0]
[1738702941326,36.88611724,205.07,205.03,13.41184853]
[1738702941489,36.88611724,205.05,205.0,4.878]
[1738702941684,36.88611724,205.03,205.0,4.878]
[1738702942218,36.88611724,205.09,205.02,20.0]
[1738702942383,36.88611724,205.15,205.08,20.0]
[1738702942589,36.88611724,205.1,205.04,0.73119227]
[1738702942892,36.88611724,205.1,205.0,17.0731]
[1738702942893,36.88611724,205.12,205.03,20.0]
[1738702943093,0.063,205.19,205.04,0.7313137]
[1738702943505,0.063,205.19,205.08,20.0]
[1738702944009,36.88611724,205.18,205.09,0.73116281]
[1738702944216,0.063,205.19,205.1,33.41184853]
[1738702944506,0.063,205.19,205.17,36.88611724]
[1738702944507,0.0001,205.19,205.17,36.88611724]
[1738702944707,0.0001,205.19,205.12,0.73070481]
[1738702944927,1.0001,205.19,205.08,0.73095442]
[1738702945095,0.7325363,205.18,205.03,4.8772]
[1738702945294,1.0,205.17,205.04,0.73137713]
[1738702945498,1.7325363,205.17,204.98,4.8785]
[1738702945732,1.7325363,205.17,204.86,2.5221031]
[1738702945733,0.50196,205.12,204.9,12.201]
[1738702945890,36.88611724,205.02,204.93,20.0]
[1738702946211,36.88611724,204.98,204.89,4.8806]
[1738702946390,36.88611724,204.96,204.89,4.8806]
[1738702946587,36.88611724,204.96,204.86,41.76731724]
[1738702946790,36.88611724,204.96,204.86,4.8812]
[1738702947121,0.1006263,205.05,204.95,36.88611724]
[1738702947292,0.9835163,205.04,204.87,0.7316703]
[1738702947614,0.9835163,205.04,204.86,5.6128703]
[1738702947615,0.25098,205.03,204.86,5.6128703]
[1738702947835,0.7325363,205.02,204.86,5.6128703]
[1738702948117,1.0,204.92,204.75,12.2095]
[1738702948297,0.7325363,204.91,204.74,0.73188128]
[1738702948488,36.88611724,204.91,204.8,36.88611724]
[1738702948687,0.7325363,204.94,204.8,36.88611724]
[1738702948931,36.88611724,204.91,204.81,0.73220254]
[1738702949230,36.88611724,204.91,204.82,36.88611724]
[1738702949430,36.88611724,204.93,204.84,36.88611724]
[1738702949597,36.88611724,204.93,204.83,4.882]
[1738702949797,36.88611724,204.9,204.83,4.882]
[1738702950021,1.0,204.99,204.76,36.88611724]
[1738702950022,0.50196,204.95,204.76,36.88611724]
[1738702950198,0.50196,204.95,204.73,0.73207385]
[1738702950199,0.50196,204.91,204.71,0.73230925]
[1738702950399,0.50196,204.85,204.66,312.0]
[1738702950618,0.50196,204.83,204.66,312.0]
[1738702950826,0.7325363,204.91,204.67,0.73265856]
[1738702951127,36.88611724,204.89,204.79,13.41184853]
[1738702951629,36.88611724,204.91,204.81,18.29424853]
[1738702951799,36.88611724,204.93,204.83,13.41184853]
[1738702952003,36.88611724,204.93,204.84,36.88611724]
[1738702952200,36.88611724,205.0,204.89,36.88611724]
[1738702952420,36.88611724,204.96,204.86,0.73176274]
[1738702952636,36.88611724,204.98,204.86,36.88611724]
[1738702952943,0.1006263,205.05,204.95,20.0]
[1738702953123,0.1006263,205.05,205.0,13.41184853]
[1738702953323,0.1006263,205.05,205.04,70.29796577]
[1738702953636,0.09032045,205.08,205.05,13.41184853]
[1738702953814,0.10588182,205.1,205.06,348.88611724]
[1738702953815,7.392e-05,205.09,205.06,348.88611724]
[1738702954012,7.392e-05,205.09,204.91,1.0]
[1738702954218,14.5344,205.08,204.92,4.8799]
[1738702954541,14.5344,205.08,204.84,1.0]
[1738702954542,0.50196,204.95,204.66,1.0]
[1738702954849,20.0,204.96,204.64,1.0]
[1738702955139,36.88611724,204.83,204.73,36.88611724]
[1738702955436,0.7325363,204.99,204.82,36.88611724]
[1738702955650,5.6088363,205.07,204.86,24.8813]
[1738702955854,4.87607392,205.09,204.89,13.53733853]
[1738702956017,7.392e-05,205.09,204.96,20.0]
[1738702956222,5.60861022,205.09,204.9,0.73140996]
[1738702956431,5.60861022,205.09,204.89,20.73170547]
[1738702956432,6.60861022,205.09,204.89,20.73170547]
[1738702956632,1.0,205.08,204.89,20.0]
[1738702956921,0.063,204.96,204.88,36.88611724]
[1738702957130,36.88611724,204.93,204.84,4.8817]
[1738702957326,36.88611724,204.93,204.82,41.76831724]
[1738702957518,0.063,204.96,204.89,56.88611724]
[1738702957845,0.063,204.96,204.94,36.88611724]
[1738702958046,0.063,204.96,204.9,0.73177847]
[1738702958047,0.063,204.96,204.91,50.29796577]
[1738702958253,0.063,204.96,204.87,41.76721724]
[1738702958424,0.063,204.96,204.82,0.73173304]
[1738702958634,0.063,204.96,204.84,13.41184853]
[1738702958832,0.063,204.96,204.93,20.0]
[1738702959018,0.063,204.96,204.95,13.41184853]
[1738702959936,0.063,204.96,204.91,41.76621724]
[1738702960245,36.94911724,204.96,204.85,41.76771724]
[1738702960442,36.88611724,204.94,204.85,4.8816]
[1738702960643,36.88611724,204.95,204.84,37.61821063]
[1738702960824,36.88611724,204.93,204.84,36.88611724]
[1738702961142,0.063,204.96,204.86,0.12549]
[1738702961346,0.063,204.96,204.93,36.88611724]
[1738702961647,0.063,204.96,204.87,41.76701724]
[1738702961834,36.88611724,204.93,204.83,36.88611724]
[1738702962024,36.88611724,204.95,204.83,41.76801724]
[1738702962222,36.88611724,204.93,204.81,36.88611724]
[1738702962426,0.063,204.96,204.87,36.88611724]
[1738702962624,36.88611724,204.93,204.8,36.88611724]
[1738702962819,36.88611724,204.93,204.83,13.41184853]
[1738702963040,0.063,204.96,204.89,13.41184853]
[1738702963243,0.063,204.96,204.84,0.73212481]
[1738702963244,0.063,204.96,204.91,13.41184853]
[1738702963443,7.392e-05,205.09,204.94,20.0]
[1738702963631,7.392e-05,205.09,204.92,0.73174172]
[1738702963632,5.60851022,205.09,204.92,0.73170066]
[1738702964016,7.392e-05,205.09,204.97,13.41184853]
[1738702964247,7.392e-05,205.09,204.99,36.88611724]
[1738702964427,5.60861022,205.09,204.95,36.88611724]
[1738702964631,5.60861022,205.09,204.79,24.47218629]
[1738702964632,11.2284,205.06,204.87,1.1981361]
[1738702964829,1.0,205.01,204.67,1.0]
[1738702965036,1.0,204.98,204.72,0.36634552]
[1738702965235,0.91521442,204.97,204.72,0.36634552]
[1738702965429,0.91521442,204.97,204.72,41.88644552]
[1738702965631,0.91521442,204.97,204.72,17.46284552]
[1738702965933,41.76471724,204.98,204.86,36.88611724]
[1738702966249,4.8761,205.08,204.97,36.88611724]
[1738702966423,7.392e-05,205.09,204.97,36.88611724]
[1738702966627,7.392e-05,205.09,205.04,312.0]
[1738702967226,0.063,205.12,204.9,1.19469388]
[1738702967425,0.063,205.12,204.91,0.86629507]
[1738702967754,0.063,205.12,205.05,20.0]
[1738702968047,36.88611724,205.1,204.98,36.88611724]
[1738702968231,36.88611724,205.1,205.01,20.0]
[1738702968752,0.063,205.12,204.98,36.88611724]
[1738702968753,0.063,205.12,205.07,20.0]
[1738702968959,0.063,205.12,205.09,20.0]
[1738702969127,0.063,205.12,205.04,36.88611724]
[1738702969461,0.063,205.12,204.96,4.879]
[1738702969462,36.88611724,205.09,204.98,36.88611724]
[1738702969827,36.88611724,205.09,204.57,14.5344]
[1738702969828,0.063,205.12,205.05,20.0]
[1738702970161,0.063,205.12,204.99,4.8782]
[1738702970162,0.063,205.12,205.1,312.0]
[1738702970348,36.88611724,205.11,204.99,4.8782]
[1738702970654,36.88611724,205.11,205.04,20.0]
[1738702970859,0.063,205.12,205.08,36.88611724]
[1738702971065,0.063,205.12,205.04,20.36405094]
[1738702971066,0.063,205.12,205.05,0.36343684]
[1738702971240,0.063,205.12,205.03,36.88611724]
[1738702971441,0.063,205.12,205.06,20.0]
[1738702971656,36.94911724,205.12,205.06,20.0]
[1738702971853,36.88611724,205.07,204.97,4.8785]
[1738702972052,36.88611724,205.09,204.95,41.76521724]
[1738702972252,36.88611724,205.01,204.91,36.88611724]
[1738702972456,0.50196,205.07,204.91,4.88]
[1738702972636,0.91477086,205.08,204.91,4.88]
[1738702972838,0.91455835,205.07,204.91,4.88]
[1738702973038,0.91467706,205.11,204.91,4.88]
[1738702973254,0.91468572,205.1,204.98,312.0]
[1738702973472,0.50196,205.03,204.87,0.03]
[1738702973650,36.88611724,204.94,204.87,0.03]
[1738702973847,36.88611724,204.92,204.87,0.03]
[1738702974164,36.88611724,204.95,204.87,0.03]
[1738702974451,36.88611724,204.97,204.87,0.03]
[1738702974659,36.88611724,204.89,204.87,0.03]
[1738702974860,36.88611724,204.93,204.87,0.03]
[1738702975040,36.88611724,204.91,204.87,0.03]
[1738702975358,36.88611724,204.95,204.87,0.03]
[1738702975561,36.88611724,204.93,204.87,0.03]
[1738702975736,36.88611724,204.91,204.87,0.03]
[1738702976067,36.88611724,204.91,204.76,36.88611724]
[1738702976068,36.88611724,204.89,204.76,36.88611724]
[1738702976367,36.88611724,204.83,204.71,36.91611724]
[1738702976575,0.12549,204.8,204.71,0.03]
[1738702976752,0.91596935,204.79,204.71,0.03]
[1738702977063,36.88611724,204.8,204.71,0.03]
[1738702977271,36.88611724,204.77,204.71,0.03]
[1738702978064,36.88611724,204.86,204.75,36.88611724]
[1738702978269,36.88611724,204.86,204.77,36.88611724]
[1738702978475,36.88611724,204.8,204.71,36.91611724]
[1738702978639,36.88611724,204.78,204.71,0.03]
[1738702978963,36.88611724,204.82,204.71,36.91611724]
[1738702979166,36.88611724,204.8,204.71,0.03]
[1738702979372,36.88611724,204.8,204.73,312.0]
[1738702979559,36.88611724,204.78,204.73,312.0]
[1738702979862,36.88611724,204.8,204.73,312.0]
[1738702980062,36.88611724,204.78,204.71,0.03]
[1738702980362,36.88611724,204.74,204.71,0.03]
[1738702980565,36.88611724,204.72,204.71,0.03]
[1738702980981,0.50196,204.71,204.55,36.88611724]
[1738702981276,36.88611724,204.58,204.49,36.88611724]
[1738702981478,36.88611724,204.56,204.45,36.88611724]
[1738702981774,36.88611724,204.66,204.55,36.88611724]
[1738702981976,36.88611724,204.59,204.47,4.8906]
[1738702982277,36.88611724,204.52,204.42,56.44684224]
[1738702982455,30.0,204.63,204.42,56.44684224]
[1738702982456,0.91678907,204.68,204.44,13.53733853]
[1738702982657,36.88611724,204.61,204.51,36.88611724]
[1738702982840,36.88611724,204.7,204.6,36.88611724]
[1738702983046,36.88611724,204.63,204.5,0.36809653]
[1738702983360,0.91615533,204.69,204.43,17.1206]
[1738702983361,0.50196,204.61,204.43,4.8915]
[1738702983552,0.91689622,204.63,204.44,0.3695642]
[1738702983762,0.91668872,204.66,204.41,29.3526]
[1738702983961,0.916534,204.7,204.47,0.37647]
[1738702984280,36.88611724,204.67,204.56,36.88611724]
[1738702984574,36.88611724,204.73,204.63,36.88611724]
[1738702984775,12.2055,204.83,204.64,13.41184853]
[1738702984974,4.8813,204.86,204.7,13.41184853]
[1738702985145,4.8813,204.86,204.7,0.36696553]
[1738702985346,20.0,204.83,204.6,0.36695557]
[1738702985562,0.50196,204.81,204.57,0.36753178]
[1738702985766,0.91598558,204.83,204.62,13.91380853]
[1738702985955,0.91598558,204.83,204.68,36.88611724]
[1738702985956,36.88611724,204.79,204.68,36.88611724]
[1738702986171,36.88611724,204.85,204.76,312.0]
[1738702986352,20.0,204.8,204.76,312.0]
[1738702986544,20.0,204.74,204.64,36.88611724]
[1738702986846,20.0,204.74,204.55,4.8887]
[1738702986847,0.12549,204.81,204.67,13.41184853]
[1738702987167,0.12549,204.81,204.58,0.37647]
[1738702987168,0.91574087,204.84,204.58,0.36726761]
[1738702987381,30.0,204.82,204.58,0.36726761]
[1738702987676,0.91582908,204.85,204.59,14.91380853]
[1738702987890,4.8802,204.91,204.67,0.12549]
[1738702988060,36.88611724,204.91,204.81,36.88611724]
[1738702988260,36.88611724,204.95,204.85,36.88611724]
[1738702988844,0.063,205.04,204.87,13.41184853]
[1738702989053,1.0,205.02,204.86,0.36510271]
[1738702989257,1.0,205.0,204.74,0.36550122]
[1738702989456,50.25098,204.94,204.8,312.0]
[1738702989678,0.12549,204.86,204.66,17.1014]
[1738702989878,36.88611724,204.75,204.64,36.88611724]
[1738702990086,36.88611724,204.79,204.68,36.88611724]
[1738702990388,0.12549,204.8,204.63,36.88611724]
[1738702990389,36.88611724,204.75,204.63,36.88611724]
[1738702990687,4.8816,204.85,204.63,0.36734818]
[1738702990882,4.8806,204.89,204.66,0.25098]
[1738702991074,4.8775,205.02,204.73,0.50196]
[1738702991262,0.91507382,205.01,204.79,0.37647]
[1738702991573,0.063,205.04,204.88,13.41184853]
[1738702991772,0.063,205.04,204.93,20.0]
[1738702991953,0.063,205.04,205.02,36.88611724]
[1738702992663,0.063,205.04,205.03,312.0]
[1738702992885,0.063,205.04,204.97,36.88611724]
[1738702993079,0.063,205.04,205.03,36.88611724]
[1738702993289,0.063,205.04,204.95,0.36423741]
[1738702993452,0.063,205.04,204.94,17.078]
[1738702993453,0.063,205.04,204.96,36.88611724]
[1738702993663,0.063,205.04,205.03,36.88611724]
[1738702993988,0.063,205.04,205.03,41.76341724]
[1738702994157,0.063,205.04,205.03,36.88611724]
[1738702994684,0.063,205.12,205.05,13.41184853]
[1738702994982,0.063,205.12,205.1,36.88611724]
[1738702995367,0.0001,205.12,205.11,13.77526762]
[1738702995562,58.063,205.33,205.16,20.0]
[1738702995881,0.063,205.33,205.21,20.0]
[1738702996175,0.063,205.33,205.31,36.88611724]
[1738702996359,0.063,205.36,205.31,36.88611724]
[1738702996554,0.063,205.36,205.35,36.88611724]
[1738702996758,0.0001,205.36,205.35,50.67443577]
[1738702996955,14.08459083,205.42,205.36,13.41184853]
[1738702997157,9.083e-05,205.42,205.41,50.29796577]
[1738702997462,36.88611724,205.52,205.41,0.36030126]
[1738702997663,36.88611724,205.48,205.38,36.88611724]
[1738702997866,36.88611724,205.44,205.34,36.88611724]
[1738702998058,36.88611724,205.4,205.3,36.88611724]
[1738702998261,36.88611724,205.36,205.26,41.75771724]
[1738702998450,36.88611724,205.38,205.28,36.88611724]
[1738702998652,36.88611724,205.45,205.29,13.41184853]
[1738702998854,36.88611724,205.49,205.39,36.88611724]
[1738702999297,36.88611724,205.51,205.44,312.0]